Cogmind - Beta 15 @@@ ROGUE MODE // 2025.07.28 @ 17:46:13 Player: C0-2MO Result: Destroyed by 1O-VRC(R) with Subdweller Machine Gun Performance ------------- Evolutions (0) 0 Regions Visited (2) 400 Robots Destroyed (22) 110 Value Destroyed (653) 653 Prototype IDs (0) 0 Alien Tech Used (0) 0 Bonus (0) 0 TOTAL SCORE: 1163 Bonus ------- None Cogmind --------- Core Integrity 0/250 Matter 295/300 Energy 179/200 System Corruption 0% Temperature Cool (0) Movement Rolling (110) Location -10/Subcaves Parts ------- > --- POWER (1) -------- Subdweller Power Source > --- PROPULSION (2) --- Subdweller Monowheel Subdweller Monowheel > --- UTILITY (2) ------ Structural Scanner Makeshift Light Armor Plating > --- WEAPON (2) ------- Subdweller Laser Battle Cannon > --- INVENTORY (5) ---- Light Ion Engine Subdweller Power Source Large Storage Unit Grenade Launcher Datajack Peak State ------------ > --- POWER ------------ (None) > --- PROPULSION ------- Wheel Subdweller Monowheel > --- UTILITY ---------- Makeshift Light Armor Plating Makeshift System Restoration Module > --- WEAPON ----------- Subdweller Laser Battle Cannon > --- INVENTORY -------- Light Ion Engine Subdweller Power Source Large Storage Unit Grenade Launcher Datajack [Rating: 15] Favorites ----------- Power Light Ion Engine Engine Light Ion Engine Propulsion Improved Treads Treads Improved Treads Wheel Subdweller Monowheel Utility Makeshift Light Armor Plating Device Structural Scanner Protection Makeshift Light Armor Plating Weapon Subdweller Laser Energy Gun Subdweller Laser Ballistic Gun Assault Rifle Ballistic Cannon Battle Cannon Launcher Grenade Launcher Build | -11 -10 -10 ------- Run | Yrd Mat Sub Slots Evolved . | . . . Power . | . . . Propulsion . | . . . Utility . | . . . Weapon . | . . . Parts Attached 24 | 4 5 15 Power 2 | . . 2 Engine 2 | . . 2 Core . | . . . Reactor . | . . . Propulsion 9 | 2 3 4 Treads 4 | 2 2 . Leg . | . . . Wheel 5 | . 1 4 Hover . | . . . Flight . | . . . Utility 4 | . . 4 Device 3 | . . 3 Storage . | . . . Processor . | . . . Hackware . | . . . Protection 1 | . . 1 Artifact . | . . . Weapon 9 | 2 2 5 Energy Gun 5 | 1 1 3 Energy Cannon . | . . . Ballistic Gun 2 | 1 1 . Ballistic Cannon 1 | . . 1 Launcher 1 | . . 1 Special Weapon . | . . . Impact Weapon . | . . . Slashing Weapon . | . . . Piercing Weapon . | . . . Special Melee Weapon . | . . . Unidentified Prototypes . | . . . Corrupted Parts 1 | . . 1 System Corruption 1 | . . 1 Parts Lost 5 | . 2 3 Power . | . . . Propulsion 2 | . . 2 Utility . | . . . Weapon 3 | . 2 1 Highest Loss Streak 1 | . 1 1 To Critical Strikes . | . . . Average Backups 4 | . 4 4 Power 1 | . 1 1 Propulsion . | . . . Utility 1 | . 1 1 Weapon . | . . . Tool/Special . | . . . Unused Backups 4 | . 1 3 Power 2 | . 1 1 Propulsion . | . . . Utility 1 | . . 1 Weapon . | . . . Tool/Special 1 | . . 1 Average Slot Usage (%) 64 | . 52 76 Engine 1 | . . 3 Treads 15 | . 25 4 Wheel 12 | . 2 22 Device 7 | . . 14 Protection 4 | . . 9 Energy Gun 15 | . 17 12 Ballistic Gun 3 | . 7 . Ballistic Cannon 4 | . . 9 Peak Build Rating 15 | 4 6 15 Average Rating 8 | 3 5 11 On Entrance 2 | . 4 4 Naked Turns . | . . . Heaviest Build 17 | 3 3 17 Greatest Support 40 | 3 3 40 Greatest Overweight (x) 1 | . . 1 Average Overweight (x) . | . . . Largest Inventory Capacity 5 | 5 5 5 Average Capacity 5 | 5 5 5 Most Carried 5 | 2 5 5 Average Carried 4 | . 4 4 Final Capacity 5 | 5 5 5 Final Carried 5 | 2 5 5 Class Distribution -------------------- 75% | Mutant 17% | Derelict-Mutant 6% | Scavenger-Mutant Dominant Class ---------------- Mutant | -10/Materials Mutant | -10/Subcaves Resources | -11 -10 -10 ----------- Run | Yrd Mat Sub Matter Collected 673 | 175 268 230 Remotely . | . . . Salvage Created 854 | . 632 222 Parts 42 | . 31 11 Haulers Intercepted 2 | . 2 . Recyclers Shooed 2 | . 2 . Parts Field Recycled . | . . . Retrieved Matter . | . . . Parts Self-Destructed 5 | . . 5 Prevented . | . . . Kills | -11 -10 -10 ------- Run | Yrd Mat Sub Combat Hostiles Destroyed 15 | . 10 5 Guns 11 | . 9 2 Cannons 1 | . . 1 AOE 3 | . 1 2 Classes Destroyed 6 | . 5 1 Worker 2 | . 2 . Hauler 2 | . 2 . Operator 2 | . 2 . Watcher 1 | . 1 . Grunt 10 | . 10 . Subdweller 5 | . . 5 Best Kill Streak 4 | . 4 2 Combat Bots Only 2 | . 2 2 Max Kills in Single Turn 1 | . 1 1 Gunslinging . | . . . Exploded 1 | . 1 1 Melee . | . . . Uniques/NPCs Destroyed . | . . . Combat | -11 -10 -10 -------- Run | Yrd Mat Sub Hostile Shots Fired 81 | . 51 30 Missed 16 | . 13 3 Hits 65 | . 38 27 Projectile 65 | . 38 27 Critical Strikes 3 | . 2 1 Damage Taken 1207 | . 619 588 Core 260 | . 138 122 Absorbed by Shields . | . . . Regen/Repaired (Parts) 128 | . 128 . Core Remaining (%) 100 | 100 . . Volleys Fired 99 | . 77 22 Largest 2 | . 2 2 Hottest 93 | . 80 93 Shots Fired 168 | . 141 27 Gun 161 | . 141 20 Cannon 4 | . . 4 Launcher 3 | . . 3 Special . | . . . Kinetic 59 | . 55 4 Thermal 77 | . 64 13 Explosive 3 | . . 3 Electromagnetic 29 | . 22 7 Robot Hit Streak 12 | . 12 12 Robot Miss Streak 4 | . 4 1 Penetration Max . | . . . Secondary Targets . | . . . Shots Hit Robots 115 | . 93 22 Core Hits 47 | . 35 12 Critical Kills 1 | . 1 . Critical Parts Destroyed . | . . . Critical Strikes 1 | . 1 . Destroy 1 | . 1 . Melee Attacks . | . . . Impact . | . . . Slashing . | . . . Piercing . | . . . Sneak Attacks . | . . . Combat Hostiles . | . . . Follow-up Attacks . | . . . Damage Inflicted 1699 | . 1242 457 Guns 1434 | . 1148 286 Cannons 58 | . . 58 Explosions 207 | . 94 113 Melee . | . . . Ramming . | . . . Kinetic 534 | . 476 58 Thermal 786 | . 577 209 Explosive 113 | . . 113 Electromagnetic 266 | . 189 77 Impact . | . . . Slashing . | . . . Piercing . | . . . Highest Corruption 1 | . . 1 Average Corruption 1 | . . 1 Corruption Purged 1 | . . 1 Corruption Blocked . | . . . Effects 4 | . . 4 Message Errors 1 | . . 1 Parts Rejected 2 | . . 2 Alerts 1 | . . 1 Overload Shots . | . . . Overflow Damage 15 | . 15 . Projectiles . | . . . Explosions 15 | . 15 . Melee . | . . . Knockbacks 1 | . . 1 Impact . | . . . Kinetic 1 | . . 1 Secondary . | . . . Self-Inflicted Damage 152 | . 152 . Shots 3 | . 3 . Rammed 2 | . 2 . Targets Rammed 2 | . 2 . Kicked . | . . . Crushed . | . . . Highest Temperature 56 | . 56 3 Average Temperature 19 | . 19 3 Received Heat Transfer 435 | . 309 126 Siege Activations . | . . . Martial Activations . | . . . Shielding Activations . | . . . Robots Disrupted . | . . . Combat Hostiles . | . . . Robots Corrupted . | . . . Combat Hostiles . | . . . Parts Fried 2 | . 2 . Impact Corruptions . | . . . Robots Melted . | . . . Combat Hostiles . | . . . Parts Melted 2 | . 2 . Heat Transferred 1450 | . 1200 250 Parts Sabotaged . | . . . Parts Stolen . | . . . Parts Stripped . | . . . Power Chain Reactions 2 | . 2 . Alert | -11 -10 -10 ------- Run | Yrd Mat Sub Maximum Alert Level 1 | . 1 . Low Security (%) 73 | 100 72 . Level 1 26 | . 27 . Level 2 . | . . . Level 3 . | . . . Level 4 . | . . . Level 5 . | . . . High Security . | . . . Max Security . | . . . Peak Influence 285 | . 285 . Initial . | . . . Average 121 | . 126 . Influence Increases 571 | . 571 . Destroy 0b10 Robot/C 200 | . 200 . Destroy 0b10 Robot/NC 35 | . 35 . Destroy Leader 56 | . 56 . Successful Hack 29 | . 29 . Disable Machine 30 | . 30 . Destroy Structure 41 | . 41 . Partial Spotted 15 | . 15 . Lose Combat Pursuer 165 | . 165 . Influence Decreases 571 | . 334 237 Entered New Map 114 | . . 114 Time Decay 417 | . 314 103 Lost Part 40 | . 20 20 Squads Dispatched 3 | . 3 . Investigation 2 | . 2 . Extermination . | . . . Reinforcement 1 | . 1 . Assault . | . . . Garrison . | . . . Intercept . | . . . Searches Triggered . | . . . Construction Impeded . | . . . Haulers Reinforced . | . . . Active Scanning Responses . | . . . Cargo Convoy Interrupts . | . . . Stealth | -11 -10 -10 --------- Run | Yrd Mat Sub Distress Signals 2 | . 2 . Communications Jammed . | . . . Distress Signals . | . . . Times Spotted 46 | . 39 7 Peak Tracking Total 7 | . 7 2 Tactical Retreats 4 | . 3 1 Traps | -11 -10 -10 ------- Run | Yrd Mat Sub Traps Triggered 2 | . 2 . Indirectly . | . . . Trap Hack Attempts . | . . . Triggered . | . . . Disarmed . | . . . Reprogrammed . | . . . Reused . | . . . Traps Extracted . | . . . Installed . | . . . Triggered . | . . . Machines | -11 -10 -10 ---------- Run | Yrd Mat Sub Machines Disabled 2 | . 2 . Max in Single Turn 2 | . 2 . Machines Repaired . | . . . Machines Dismantled . | . . . Machines Sabotaged . | . . . Overloaded Fab Kills . | . . . Hacking | -11 -10 -10 --------- Run | Yrd Mat Sub Machines Accessed 7 | . 7 . Terminals 6 | . 6 . Fabricators . | . . . Repair Stations 1 | . 1 . Recycling Units . | . . . Scanalyzers . | . . . Garrison Access . | . . . Total Hacks 22 | . 22 . Successful 16 | . 16 . Failed 6 | . 6 . Catastrophic 1 | . 1 . Database Lockouts . | . . . Manual 19 | . 19 . Terminals 20 | . 20 . Fabricators . | . . . Repair Stations 2 | . 2 . Recycling Units . | . . . Scanalyzers . | . . . Garrison Access . | . . . Terminal Hacks 4 | . 4 . Robot Schematic 1 | . 1 . Robot Analysis 2 | . 2 . Terminal Index 1 | . 1 . Fabricator Hacks . | . . . Repair Station Hacks 2 | . 2 . Scan Component 1 | . 1 . Repair 1 | . 1 . Recycling Unit Hacks . | . . . Scanalyzer . | . . . Garrison Access Hacks . | . . . Unauthorized Hacks 10 | . 10 . Terminals 10 | . 10 . Botnet 4 | . 4 . Operators 1 | . 1 . Skim 5 | . 5 . Fabricators . | . . . Repair Stations . | . . . Recycling Units . | . . . Scanalyzers . | . . . Garrison Access . | . . . Data Cores Recovered 1 | . 1 . Used . | . . . Hacking Detections 6 | . 6 . Full Trace Events . | . . . Feedback Events . | . . . Feedback Blocked . | . . . Robot Schematics Acquired 1 | . 1 . Robots Built . | . . . Authchips . | . . . Time . | . . . Total Robot Build Rating . | . . . Part Schematics Acquired . | . . . Parts Built . | . . . Authchips . | . . . Time . | . . . Total Part Build Rating . | . . . Parts Repaired 1 | . 1 . Time 32 | . 32 . Parts Recycled . | . . . Recycled Matter . | . . . Retrieved Matter . | . . . Retrieved Components . | . . . Parts Scanalyzed . | . . . Part Schematics Acquired . | . . . Parts Damaged . | . . . Bothacking | -11 -10 -10 ------------ Run | Yrd Mat Sub Used RIF Installer . | . . . Robots Hacked . | . . . Non-combat . | . . . Combat . | . . . Robot Hacks Applied . | . . . Relay Couplers Released . | . . . Fabnet Peak Effective % . | . . . Robots Rewired . | . . . Allies Hacked . | . . . Hacks Repelled . | . . . Allies | -11 -10 -10 -------- Run | Yrd Mat Sub Total Allies . | . . . Largest Group . | . . . Highest-Rated Group . | . . . Highest-Rated Ally . | . . . Total Orders . | . . . Ally Attacks . | . . . Total Damage . | . . . Kills . | . . . Allies Corrupted . | . . . Allies Melted . | . . . Intel | -11 -10 -10 ------- Run | Yrd Mat Sub Active Infowar (turns) 379 | . . 379 Structural 379 | . . 379 Robot Analysis Total 2 | . 2 . Derelict Logs Recovered . | . . . Drone Launches . | . . . Drone Recoveries . | . . . Exploration | -11 -10 -10 ------------- Run | Yrd Mat Sub Turns Passed 1557 | 29 774 754 Spaces Moved 1179 | 41 694 444 Core 832 | 41 694 97 Treads . | . . . Legs . | . . . Wheels 347 | . . 347 Hover . | . . . Flight . | . . . Fastest Speed 50 | 50 50 50 Average Speed 64 | 50 50 87 Slowest Speed 110 | 50 50 110 Overloaded Moves . | . . . Propulsion Burnouts . | . . . Robots Hopped . | . . . Potential Cave-ins . | . . . Cave-ins Triggered . | . . . Exploration Rate (%) 42 | 3 97 28 Regions Visited 2 Branch Regions 1 Pre-discovered Areas . | . . . Known Exits Taken 1 | . 1 . Unknown Exits Taken 1 | 1 . . Scrap Searched 4 | . . 4 Spaces Dug . | . . . Terrain Destroyed 62 | . 50 12 Melee . | . . . Projectile . | . . . AOE 62 | . 50 12 Terrain Rammed . | . . . Walls Destroyed . | . . . Machines Disabled . | . . . Actions | -11 -10 -10 --------- Run | Yrd Mat Sub Total 1808 | 46 978 784 Wait 479 | . 191 288 Move 1177 | 40 693 444 Hop . | . . . Pick Up 7 | 2 4 1 Fast Attach 19 | 4 3 12 Attach 4 | . . 4 Detach 3 | . . 3 Swap 6 | . 3 3 Drop 12 | . 5 7 Fire 99 | . 77 22 Melee . | . . . Ram . | . . . Kick . | . . . Crush 2 | . 2 . Escape Stasis . | . . . Rewire . | . . . Trap . | . . . Miscellaneous . | . . . Route ------- -11/Scrapyard -10/Materials (discovered 5 exits: *Mat x3 / *Min / *Sub) -10/Subcaves History --------- Turn | Location | Event 3 | -11/Scrapyard | Discovered new exit (range 15) 30 | -11/Scrapyard | Entered Materials 181 | -10/Materials | Discovered new exit (range 15) 315 | -10/Materials | Build established: Mutant 490 | -10/Materials | Discovered new exit (range 6) 538 | -10/Materials | Identified exit to Materials 538 | -10/Materials | Identified exit to Subcaves 538 | -10/Materials | Identified exit to Mines 615 | -10/Materials | Learned 2 Mines zone layouts 617 | -10/Materials | Core integrity fell below 50% 681 | -10/Materials | Loaded intel: 8 terminal locations 735 | -10/Materials | Learned 4 Recycling zone layouts 742 | -10/Materials | Repaired Imp. Treads 778 | -10/Materials | Learned 2 Mines zone layouts 804 | -10/Materials | Entered Subcaves 805 | -10/Subcaves | Approached by a straggling Scientist 865 | -10/Subcaves | Core integrity fell below 20% 1411 | -10/Subcaves | Ambushed by Subdwellers from Twisted Machinery 1558 | -10/Subcaves | Destroyed by 1O-VRC(R) with Subdweller Machine Gun Last Messages --------------- 01300_ Discarded Mak. System Restoration Module. 01301_ Acquired Structural Scanner. 01303_ Acquired 10 matter. 01308_ Subatomizers dissect the Disposable Heat Sink. 01312_ Dropped Sub. Laser. 01314_ Acquired 10 matter. 01316_ Dropped Wheel. 01316_ Acquired Sub. Monowheel. 01318_ Acquired 10 matter. 01411_ 81-V7M(R) emerges from the Twisted Machinery. 01452_ 81-V7M(R) destroyed. 01455_ LX-7PA(R) destroyed. 01463_ Dropped Sub. Laser. 01466_ Dropped Sub. Monowheel. 01467_ Acquired 35 matter. 01471_ Acquired Sub. Power Source. 01472_ Acquired 10 matter. 01558_ 1O-VRC(R) knocked back. Map ----- +----------------------------------------------------+ | ???"#### ### ### ##?## ## | | ?# ""##### ## ##?## ##### | | ### """"###### ###?#### ####### | | ## " ###### ## ###?#### ###?#### | | " " ## ## #### ##??### ##???#### | | ## ####?###??## #????###### | | ## #### ####??###??## """"?????? #### | | ######### ## ####????????##"""""????????### | | ## ## ###### ######???????##"????????????## | | #############????????????????????? | | ########## ####???????????????????? | | ###### ## ####???????????????????? | | ### # # ##### ####???????????????????? | | ### ## %%! ####???????????????????? | | #### =%&&! ######????????????????? | | #### ## # [### ######???????????????? | | ### ######### ##########"###???????????????? | | ########## ######## "###??????????????? | | ###????## ##### " " ##??????????????? | | ### ###?????### ## " " ??????????????? | | ########?????###### """"" ????????????? | | #######???????####### R ??????????? | | ?????????????????#### ## ??????????? | | ???????????????????## ## ??? ?????????????? | | ???????????????????## ##?????????????????????? | | ???????????????????## @##?????????????????????? | | ???????????????????## ##?????????????????????? | | ???????????????????## ##?????????????????????? | | ???????????????????## #?????????????????????? | | ???????????????????## ##???????????????????? | | ???????????????????####### ###???????????????????? | | ???????????????????###########???????????????????? | | ?????????????????????????####????????????????????? | | ?????????????????????????????????????????????????? | | ?????????????????????????????????????????????????? | | ?????????????????????????????????????????????????? | | ?????????????????????????????????????????????????? | | ?????????????????????????????????????????????????? | | ?????????????????????????????????????????????????? | | ?????????????????????????????????????????????????? | | ?????????????????????????????????????????????????? | | ?????????????????????????????????????????????????? | | ?????????????????????????????????????????????????? | | ?????????????????????????????????????????????????? | | ?????????????????????????????????????????????????? | | ?????????????????????????????????????????????????? | | ?????????????????????????????????????????????????? | | ?????????????????????????????????????????????????? | | ?????????????????????????????????????????????????? | | ?????????????????????????????????????????????????? | +----------------------------------------------------+ Best States ------------- Heat Dissipation 25 Coolant Potential 50 Energy Generation 15 Energy Capacity 200 Matter Stores 300 Matter Capacity 300 Sight Range 16 Terrain Scan Density 10 Armor Coverage 100 Evasion (%) 50 Recoil Reduction 2 Item Schematics ----------------- None Robot Schematics ------------------ M-13 Machinist | -10/Materials | Hacked Fabricated ------------ Nothing Repaired ---------- Imp. Treads | 17% | -10/Materials Alien Tech Used ----------------- None Achievements -------------- None Challenges ------------ None Game ------ Seed ZioniteNetworkBallwheel Manual? 0 Play Time 00:20:40 Cumulative 380.5 hours Start 2025.07.28 @ 17:28:39 End 2025.07.28 @ 17:46:13 Sessions 1 Manual Loads 0 Difficulty Rogue Special Mode None Game No. 180 Rogue 180 Adventurer 0 Explorer 0 Win Type - Total 25 Types 10/1/5/1/5/1/0/1/0/1 Lore% 91 Gallery% 81 Achievement% 77 Wizard Run 0 Options --------- Layout 1 ASCII 0 Keyboard 0 Movement Numpad Keybinds 0 Fullscreen 1 Font 24/Smallcaps Map View 50x35 Zoom Use 0% Tactical HUD 1 Map Filters NONE Filters NONE Steam 1 RUN: 3bd1a7c5-9a12-4580-9758-451fa2a544de